Cogmind - Beta 13 @@@ ROGUE MODE // 2024.05.02 @ 20:11:15 Player: tartine Result: Destroyed by D-53 Grenadier with Mini Grenade Launcher Performance ------------- Evolutions (2) 1000 Regions Visited (5) 1000 Robots Destroyed (36) 180 Value Destroyed (1240) 1240 Prototype IDs (1) 20 Alien Tech Used (0) 0 Bonus (739) 739 TOTAL SCORE: 4179 Bonus ------- High Alert Combat Kills 39 Entered Garrisons 200 Used RIF Installer 500 Cogmind --------- Core Integrity 0/550 Matter 300/300 Energy 99/100 System Corruption 1% Temperature Cool (0) Movement Core (50) Location -8/Garrison Parts ------- > --- POWER (1) -------- (None) > --- PROPULSION (3) --- (None) > --- UTILITY (5) ------ Signal Interpreter > --- WEAPON (2) ------- (None) > --- INVENTORY (5) ---- Improved Ion Engine Structural Scanner Relay Coupler [NC] (22) Relay Coupler [Swarmer] (40) Relay Coupler [Grunt] (22) Peak State ------------ > --- POWER ------------ Light Nuclear Core > --- PROPULSION ------- Light Treads Improved Treads Improved Treads > --- UTILITY ---------- Small Storage Unit Signal Interpreter Core Shielding Light Armor Plating Light Armor Plating > --- WEAPON ----------- Improved Assault Rifle Improved Assault Rifle > --- INVENTORY -------- Light Ion Engine Improved Ion Engine Light Treads Wheel Cooling System Structural Scanner Medium Laser [Rating: 19] Favorites ----------- Power Ion Engine Engine Ion Engine Power Core Light Nuclear Core Propulsion Improved Treads Treads Improved Treads Wheel Wheel Flight Unit Flight Unit Utility Small Storage Unit Device Structural Scanner Storage Small Storage Unit Processor Signal Interpreter Protection Light Armor Plating Weapon Improved Assault Rifle Energy Gun Particle Gun Ballistic Gun Improved Assault Rifle Build | -11 -10 -9 -9 -8 -8 ------- Run | Yrd Mat Mat Min Mat Gar Slots Evolved 4 | . . 2 . 2 . Power . | . . . . . . Propulsion 1 | . . . . 1 . Utility 3 | . . 2 . 1 . Weapon . | . . . . . . Parts Attached 36 | 6 2 8 1 5 14 Power 6 | 1 . 1 1 2 1 Engine 4 | 1 . . 1 2 . Core 2 | . . 1 . . 1 Reactor . | . . . . . . Propulsion 10 | 2 . 2 . 1 5 Treads 7 | 2 . 2 . 1 2 Leg . | . . . . . . Wheel 1 | . . . . . 1 Hover . | . . . . . . Flight 2 | . . . . . 2 Utility 10 | 1 1 3 . 2 3 Device 2 | . . 1 . . 1 Storage 1 | 1 . . . . . Processor 1 | . . 1 . . . Hackware . | . . . . . . Protection 6 | . 1 1 . 2 2 Artifact . | . . . . . . Weapon 10 | 2 1 2 . . 5 Energy Gun 5 | 1 . . . . 4 Energy Cannon . | . . . . . . Ballistic Gun 5 | 1 1 2 . . 1 Ballistic Cannon . | . . . . . . Launcher . | . . . . . . Special Weapon . | . . . . . . Impact Weapon . | . . . . . . Slashing Weapon . | . . . . . . Piercing Weapon . | . . . . . . Special Melee Weapon . | . . . . . . Unidentified Prototypes 1 | . . 1 . . . Parts Lost 19 | . . . 1 2 16 Power 3 | . . . 1 1 1 Propulsion 5 | . . . . . 5 Utility 7 | . . . . 1 6 Weapon 4 | . . . . . 4 Highest Loss Streak 11 | . . . 1 1 11 To Critical Strikes . | . . . . . . Average Slot Usage (%) 91 | . 99 99 98 99 78 Engine 7 | . 14 9 9 8 . Core 2 | . . 1 1 . 6 Treads 22 | . 28 22 22 27 17 Flight 1 | . . . . . 4 Device 5 | . . 11 11 9 4 Storage 10 | . 14 11 11 9 7 Processor 7 | . . 10 11 9 9 Protection 13 | . 13 11 11 18 14 Energy Gun 6 | . 14 . . . 7 Ballistic Gun 13 | . 14 21 22 18 5 Naked Turns . | . . . . . . Heaviest Build 32 | 14 17 20 20 23 32 Greatest Support 66 | 40 40 46 46 66 66 Greatest Overweight (x) 9 | . . . . . 9 Average Overweight (x) . | . . . . . . Largest Inventory Capacity 8 | 8 8 8 8 8 8 Average Capacity 7 | 7 8 8 8 8 7 Most Carried 8 | 1 7 8 7 6 7 Average Carried 5 | . 5 7 6 4 5 Final Capacity 8 | 8 8 8 8 8 5 Final Carried 7 | 1 7 7 6 6 5 Class Distribution -------------------- 79% | Mutant 20% | Scavenger-Mutant Dominant Class ---------------- Mutant | -10/Materials Mutant | -9/Materials Mutant | -9/Mines Mutant | -8/Materials Scavenger-Mutant | -8/Garrison Resources | -11 -10 -9 -9 -8 -8 ----------- Run | Yrd Mat Mat Min Mat Gar Matter Collected 948 | 141 195 66 114 192 240 Remotely . | . . . . . . Salvage Created 1283 | . 256 148 91 297 491 Parts 71 | . 14 8 4 13 32 Haulers Intercepted . | . . . . . . Recyclers Shooed 1 | . 1 . . . . Parts Field Recycled . | . . . . . . Retrieved Matter . | . . . . . . Parts Self-Destructed . | . . . . . . Prevented . | . . . . . . Kills | -11 -10 -9 -9 -8 -8 ------- Run | Yrd Mat Mat Min Mat Gar Combat Hostiles Destroyed 33 | . 7 1 4 5 16 Melee 1 | . 1 . . . . Guns 32 | . 6 1 4 5 16 Classes Destroyed 9 | . 3 3 1 1 1 Builder 1 | . . 1 . . . Recycler 2 | . . 1 . 1 . Mechanic 1 | . . . . 1 . Watcher 1 | . 1 . . . . Swarmer 12 | . 3 . . 2 7 Grunt 13 | . 4 . 2 2 5 Sentry 3 | . . 1 . 1 1 Programmer 3 | . . . . . 3 Assembled 2 | . . . 2 . . Best Kill Streak 4 | . 3 2 4 2 4 Combat Bots Only 4 | . 3 1 4 2 4 Max Kills in Single Turn 2 | . 1 1 2 1 1 Gunslinging 1 | . . . 1 . . Exploded . | . . . . . . Melee 1 | . 1 . . . . Uniques/NPCs Destroyed . | . . . . . . Combat | -11 -10 -9 -9 -8 -8 -------- Run | Yrd Mat Mat Min Mat Gar Hostile Shots Fired 317 | . 38 8 17 36 218 Missed 89 | . 6 4 3 14 62 Damage Taken 3024 | . 329 64 285 296 2050 Core 692 | . 66 . 73 32 521 Absorbed by Shields 12 | . . . . . 12 Redirected to Shielding 50 | . . . . 6 44 Core Remaining (%) 84 | 100 73 . 81 . . Volleys Fired 116 | . 19 8 9 24 56 Largest 2 | . 2 2 2 2 2 Hottest 130 | . 70 46 46 46 130 Shots Fired 210 | . 38 16 18 48 90 Gun 210 | . 38 16 18 48 90 Cannon . | . . . . . . Launcher . | . . . . . . Special . | . . . . . . Kinetic 137 | . 19 16 18 48 36 Thermal 73 | . 19 . . . 54 Explosive . | . . . . . . Electromagnetic . | . . . . . . Robot Hit Streak 24 | . 11 6 15 22 24 Robot Miss Streak 3 | . 3 1 2 2 2 Penetration Max . | . . . . . . Secondary Targets 5 | . . . 3 . 2 Max Gunslinging Chain 1 | . . . 1 . 1 Shots Hit Robots 145 | . 23 10 16 34 62 Core Hits 64 | . 13 5 7 10 29 Critical Kills . | . . . . . . Critical Parts Destroyed 1 | . . . . 1 . Critical Strikes 4 | . 2 . . 1 1 Burn 3 | . 2 . . . 1 Destroy 1 | . . . . 1 . Melee Attacks . | . . . . . . Impact . | . . . . . . Slashing . | . . . . . . Piercing . | . . . . . . Sneak Attacks . | . . . . . . Combat Hostiles . | . . . . . . Follow-up Attacks . | . . . . . . Damage Inflicted 2191 | . 284 158 248 531 970 Guns 2183 | . 283 158 248 531 963 Cannons . | . . . . . . Explosions . | . . . . . . Melee . | . . . . . . Ramming 8 | . 1 . . . 7 Kinetic 1374 | . 149 158 248 531 288 Thermal 809 | . 134 . . . 675 Explosive . | . . . . . . Electromagnetic . | . . . . . . Impact . | . . . . . . Slashing . | . . . . . . Piercing . | . . . . . . Highest Corruption 3 | . . . 3 . 1 Average Corruption 1 | . . . 3 . 1 Corruption Purged . | . . . . . . Corruption Blocked . | . . . . . . Effects 6 | . . . 3 . 3 Message Errors 3 | . . . 1 . 2 Heat Flow Errors 1 | . . . 1 . . Energy Discharges 1 | . . . 1 . . Parts Rejected 1 | . . . . . 1 Overload Shots . | . . . . . . Overflow Damage . | . . . . . . Projectiles . | . . . . . . Explosions . | . . . . . . Melee . | . . . . . . Knockbacks . | . . . . . . Impact . | . . . . . . Kinetic . | . . . . . . Secondary . | . . . . . . Self-Inflicted Damage 3 | . . . . . 3 Shots . | . . . . . . Rammed 1 | . . . . . 1 Targets Rammed 2 | . 1 . . . 1 Kicked . | . . . . . . Crushed 1 | . 1 . . . . Highest Temperature 462 | . 153 . 166 1 462 Average Temperature 94 | . 52 . 40 1 139 Received Heat Transfer 1134 | . 129 9 96 108 792 Effects 4 | . . . . . 4 Energy Bleed 1 | . . . . . 1 Matter Decay 1 | . . . . . 1 Short Circuit 2 | . . . . . 2 Siege Activations . | . . . . . . Robots Corrupted . | . . . . . . Combat Hostiles . | . . . . . . Parts Fried . | . . . . . . Impact Corruptions . | . . . . . . Robots Melted . | . . . . . . Combat Hostiles . | . . . . . . Parts Melted 8 | . 2 . . . 6 Heat Transferred 2109 | . 555 . . . 1554 Parts Sabotaged . | . . . . . . Parts Stolen . | . . . . . . Parts Stripped . | . . . . . . Power Chain Reactions . | . . . . . . Alert | -11 -10 -9 -9 -8 -8 ------- Run | Yrd Mat Mat Min Mat Gar Peak Influence 472 | . 193 156 110 240 472 Initial 157 | . . 81 60 39 157 Average 192 | . 84 103 99 149 351 Maximum Alert Level 2 | . . . . 1 2 Low Security (%) 62 | 100 100 100 100 73 7 Level 1 23 | . . . . 26 52 Level 2 14 | . . . . . 39 Level 3 . | . . . . . . Level 4 . | . . . . . . Level 5 . | . . . . . . High Security . | . . . . . . Max Security . | . . . . . . Squads Dispatched 4 | . 2 . . 2 . Investigation 1 | . 1 . . . . Extermination . | . . . . . . Reinforcement 1 | . 1 . . . . Assault . | . . . . . . Garrison 2 | . . . . 2 . Intercept . | . . . . . . Searches Triggered . | . . . . . . Construction Impeded . | . . . . . . Haulers Reinforced . | . . . . . . Active Scanning Responses . | . . . . . . Cargo Convoy Interrupts . | . . . . . . Stealth | -11 -10 -9 -9 -8 -8 --------- Run | Yrd Mat Mat Min Mat Gar Distress Signals 2 | . 2 . . . . Communications Jammed . | . . . . . . Distress Signals . | . . . . . . Times Spotted 60 | . 13 4 8 9 26 Peak Tracking Total 9 | . 4 5 5 3 9 Tactical Retreats 7 | . . . . 4 3 Traps | -11 -10 -9 -9 -8 -8 ------- Run | Yrd Mat Mat Min Mat Gar Traps Triggered 3 | . 1 . . . 2 Indirectly . | . . . . . . Trap Hack Attempts . | . . . . . . Triggered . | . . . . . . Disarmed . | . . . . . . Reprogrammed . | . . . . . . Reused . | . . . . . . Traps Extracted . | . . . . . . Installed . | . . . . . . Triggered . | . . . . . . Machines | -11 -10 -9 -9 -8 -8 ---------- Run | Yrd Mat Mat Min Mat Gar Machines Disabled 1 | . . . . . 1 Max in Single Turn 1 | . . . . . 1 Garrison Relay 1 | . . . . . 1 Machines Repaired . | . . . . . . Machines Dismantled . | . . . . . . Machines Sabotaged . | . . . . . . Overloaded Fab Kills . | . . . . . . Hacking | -11 -10 -9 -9 -8 -8 --------- Run | Yrd Mat Mat Min Mat Gar Machines Accessed 10 | . 4 3 . 2 1 Terminals 9 | . 4 3 . 1 1 Fabricators . | . . . . . . Repair Stations . | . . . . . . Recycling Units . | . . . . . . Scanalyzers . | . . . . . . Garrison Access 1 | . . . . 1 . Total Hacks 26 | . 11 10 . 2 3 Successful 8 | . 4 2 . 2 . Failed 18 | . 7 8 . . 3 Catastrophic 3 | . 2 . . . 1 Database Lockouts . | . . . . . . Manual 20 | . 10 9 . 1 . Terminals 25 | . 11 10 . 1 3 Fabricators . | . . . . . . Repair Stations . | . . . . . . Recycling Units . | . . . . . . Scanalyzers . | . . . . . . Garrison Access 1 | . . . . 1 . Terminal Hacks 2 | . 2 . . . . Alert Level 1 | . 1 . . . . Recall Investigation 1 | . 1 . . . . Fabricator Hacks . | . . . . . . Repair Station Hacks . | . . . . . . Recycling Unit Hacks . | . . . . . . Scanalyzer . | . . . . . . Garrison Access Hacks 1 | . . . . 1 . Unlock Access 1 | . . . . 1 . Unauthorized Hacks 5 | . 2 2 . 1 . Terminals 5 | . 2 2 . 1 . Botnet 5 | . 2 2 . 1 . Fabricators . | . . . . . . Repair Stations . | . . . . . . Recycling Units . | . . . . . . Scanalyzers . | . . . . . . Garrison Access . | . . . . . . Data Cores Recovered . | . . . . . . Used . | . . . . . . Hacking Detections 7 | . 3 2 . 1 1 Full Trace Events 1 | . . . . . 1 Feedback Events . | . . . . . . Feedback Blocked . | . . . . . . Robot Schematics Acquired . | . . . . . . Robots Built . | . . . . . . Authchips . | . . . . . . Time . | . . . . . . Total Robot Build Rating . | . . . . . . Part Schematics Acquired . | . . . . . . Parts Built . | . . . . . . Authchips . | . . . . . . Time . | . . . . . . Total Part Build Rating . | . . . . . . Parts Repaired . | . . . . . . Time . | . . . . . . Parts Recycled . | . . . . . . Recycled Matter . | . . . . . . Retrieved Matter . | . . . . . . Retrieved Components . | . . . . . . Parts Scanalyzed . | . . . . . . Part Schematics Acquired . | . . . . . . Parts Damaged . | . . . . . . Bothacking | -11 -10 -9 -9 -8 -8 ------------ Run | Yrd Mat Mat Min Mat Gar Used RIF Installer 1 | . . . . . 1 Robots Hacked . | . . . . . . Non-combat . | . . . . . . Combat . | . . . . . . Robot Hacks Applied . | . . . . . . Relay Couplers Released 5 | . . . . . 5 Machine Destruction 5 | . . . . . 5 Fabnet Peak Effective % . | . . . . . . Robots Rewired . | . . . . . . Allies Hacked . | . . . . . . Hacks Repelled . | . . . . . . Allies | -11 -10 -9 -9 -8 -8 -------- Run | Yrd Mat Mat Min Mat Gar Total Allies 1 | . . . . . 1 Largest Group 1 | . . . . . 1 Highest-Rated Group 31 | . . . . . 31 Highest-Rated Ally 31 | . . . . . 31 Total Orders . | . . . . . . Ally Attacks 2 | . . . . . 2 Total Damage 22 | . . . . . 22 Kills . | . . . . . . Allies Corrupted . | . . . . . . Allies Melted . | . . . . . . Intel | -11 -10 -9 -9 -8 -8 ------- Run | Yrd Mat Mat Min Mat Gar Robot Analysis Total . | . . . . . . Derelict Logs Recovered . | . . . . . . Drone Launches . | . . . . . . Drone Recoveries . | . . . . . . Exploration | -11 -10 -9 -9 -8 -8 ------------- Run | Yrd Mat Mat Min Mat Gar Turns Passed 1632 | 68 360 271 110 221 602 Spaces Moved 813 | 39 173 134 52 81 334 Core 127 | 3 . . . . 124 Treads 684 | 36 173 134 52 81 208 Legs . | . . . . . . Wheels 2 | . . . . . 2 Hover . | . . . . . . Flight . | . . . . . . Fastest Speed 50 | 50 160 160 160 160 50 Average Speed 143 | 151 160 160 160 160 120 Slowest Speed 500 | 160 160 160 160 160 500 Overloaded Moves . | . . . . . . Propulsion Burnouts . | . . . . . . Robots Hopped . | . . . . . . Cave-ins Triggered . | . . . . . . Exploration Rate (%) 25 | 4 44 21 22 10 50 Regions Visited 5 Branch Regions 1 Pre-discovered Areas . | . . . . . . Known Exits Taken 3 | . . 1 1 1 . Unknown Exits Taken 2 | 1 1 . . . . Scrap Searched . | . . . . . . Spaces Dug . | . . . . . . Terrain Destroyed . | . . . . . . Melee . | . . . . . . Projectile . | . . . . . . AOE . | . . . . . . Terrain Rammed . | . . . . . . Walls Destroyed . | . . . . . . Machines Disabled . | . . . . . . Actions | -11 -10 -9 -9 -8 -8 --------- Run | Yrd Mat Mat Min Mat Gar Total 1068 | 46 217 175 61 123 446 Wait 61 | . 18 18 . 11 14 Move 809 | 38 172 133 51 81 334 Hop . | . . . . . . Pick Up 18 | 2 5 3 . 2 6 Fast Attach 13 | 5 1 1 . 1 5 Attach 13 | 1 . 2 1 3 6 Detach 1 | . . . . . 1 Swap 10 | . 1 5 . 1 3 Drop 11 | . . 5 . . 6 Fire 116 | . 19 8 9 24 56 Melee . | . . . . . . Ram 1 | . . . . . 1 Kick . | . . . . . . Crush 1 | . 1 . . . . Escape Stasis 14 | . . . . . 14 Rewire . | . . . . . . Trap . | . . . . . . Miscellaneous . | . . . . . . Route ------- -11/Scrapyard -10/Materials -9/Materials -9/Mines -8/Materials -8/Garrison (discovered 2 exits: [*Fac] / [*Mat]) History --------- Turn | Location | Event 20 | -11/Scrapyard | Discovered new exit (range 15) 69 | -11/Scrapyard | Entered Materials 320 | -10/Materials | Build established: Mutant 407 | -10/Materials | Discovered new exit (range 10) 429 | -10/Materials | Entered another Materials area 429 | -9/Materials | Evolved 2 slots: Utility x2 652 | -9/Materials | Discovered new exit (range 13) 699 | -9/Materials | Identified exit to Mines 700 | -9/Materials | Entered Mines 701 | -9/Mines | Assembled infested the area 706 | -9/Mines | Assisted by a Guerilla fighting off Assembled 772 | -9/Mines | Discovered new exit (range 15) 804 | -9/Mines | Identified exit to Materials 810 | -9/Mines | Entered Materials 810 | -8/Materials | Evolved 2 slots: Propulsion x1, Utility x1 841 | -8/Materials | Garrison activated, responded to threat 1031 | -8/Materials | Identified exit to Garrison 1031 | -8/Materials | Entered Garrison 1053 | -8/Garrison | Triggered checkpoint 1126 | -8/Garrison | Discovered new exit (range 5) 1215 | -8/Garrison | Triggered checkpoint 1222 | -8/Garrison | Garrison Relay disabled 1309 | -8/Garrison | Installed Relay Interface Framework 1455 | -8/Garrison | Build established: Scavenger-Mutant 1463 | -8/Garrison | Triggered checkpoint 1499 | -8/Garrison | Triggered checkpoint 1553 | -8/Garrison | Core integrity fell below 50% 1587 | -8/Garrison | Lost 11 parts (1p3n4u3w) 1614 | -8/Garrison | Discovered new exit (range 13) 1616 | -8/Garrison | Core integrity fell below 20% 1625 | -8/Garrison | Rescued a captive Derelict 1626 | -8/Garrison | Rescued a captive Derelict 1633 | -8/Garrison | Triggered checkpoint 1633 | -8/Garrison | Destroyed by D-53 Grenadier with Mini Grenade Launcher Last Messages --------------- 01587_ Field strength at 46. 01588_ Field strength at 40. 01589_ Field strength at 34. 01590_ Field strength at 24. 01591_ Field strength at 18. 01592_ Field strength at 8. 01593_ Field strength at 2. 01594_ Stasis field depleted. 01614_ EXIT=FOUND 01615_ C-30 ARC bursts open, deploying its payload. 01615_ S-10 Pest unfolds itself. 01618_ Connecting with Door Terminal... 01618_ ALERT: Suspicious activity at Terminal G002. Transmitting hostile system tracking data. 01619_ Slammed into S-10 Pest. 01623_ Detecting nearby RIF Installer. 01633_ Beams of light sweep through the air. An alarm sounds. Map ----- +----------------------------------------------------+ | #?????????????????????????????? | | ############# #?????????????????????????????? | | #???????????# #?????????????????????????????? | | ####???????????# #?????????????????????????????? | | ???????????????# #?????????????????????????????? | | ???????????????# #?????????????????????????????? | | ???????????????# #?????????????????????????????? | | ???????????????# #?????????????????????????????? | | ???????????????# #?????????????????????????????? | | ???????????????# #?????????????????????????????? | | ???????????????# #?????????????????????????????? | | ???????????????# #?????????????????????????????? | | ???????????????# #?????????????????????????????? | | ???????????????# #?????????????????????????????? | | ???????????????# #?????????????????????????????? | | ???????????????# #?????????????????????????????? | | ???????????????# #?????????????????????????????? | | ???????????????# #?????????????????????????????? | | ???????????????# #########################%##??? | | ???????????????# % ![#??? | | ???????????????# ###"##??? | | ???????????????# #???????? | | ???????????????################# #### #???????? | | ???????????????????????##??????# #??#" #???????? | | ???????????????#########T####### #??#%" #???????? | | ???????????????# @ s #??#" #???????? | | ???????????????# #??# #???????? | | ???????????????### ##### i ######??# #???????? | | ????????????????#""??????#d #???????# #???????? | | ?????????????????????????#####???????# #???????? | | ?????????????????????????????????????# #???????? | | ?????????????????????????????????????# < #???????? | | ?????????????????????????????????????# #???????? | | ?????????????????????????????????????#####???????? | | ?????????????????????????????????????????????????? | | ??????????????????????????"?"????????????????????? | | ??????????????????????????"?"????????????????????? | | ??????????????????????????"?"????????????????????? | | ??????????????????????????"""????????????????????? | | ?????????????????????????????????????????????????? | | ?????????????????????????????????????????????????? | | ?????????????????????????????????????????????????? | | ?????????????????????????????????????????????????? | | ?????????????????????????????????????????????????? | | | | | | | | | | | | | +----------------------------------------------------+ Best States ------------- Heat Dissipation 53 Energy Generation 14 Energy Capacity 265 Matter Stores 300 Matter Capacity 300 Sight Range 16 Terrain Scan Density 10 Armor Coverage 300 Resistance: KI 30 Core Shielding 20 Evasion (%) 50 Recoil Reduction 3 Item Schematics ----------------- None Robot Schematics ------------------ None Fabricated ------------ Nothing Alien Tech Used ----------------- None Achievements -------------- None Challenges ------------ None Game ------ Seed DerelictWeldingScythe Manual? 0 Play Time 00:19:09 Cumulative 38.7 hours Start 2024.05.02 @ 19:55:37 End 2024.05.02 @ 20:11:15 Sessions 1 Manual Loads 0 Difficulty Rogue Special Mode None Game No. 51 Rogue 51 Adventurer 0 Explorer 0 Win Type - Total 2 Types 2/0/0/0/0/0/0/0/0 Lore% 33 Gallery% 41 Achievement% 33 Wizard Run 0 Options --------- Layout 1 ASCII 0 Keyboard 0 Movement Mouse Keybinds 0 Fullscreen 1 Font 24/Smallcaps Map View 50x35 Zoom Use 0% Tactical HUD 1 Map Filters NONE Filters NONE Steam 1 RUN: 76683a16-9572-4228-90c3-7ee02677016d